bitfinex/quotes_SOLUSD_20250310
["timestamp","ask_amount","ask_price","bid_price","bid_amount"]
[1741649075299,35.15343509,119.28,119.25,29.35]
[1741649075674,35.15343509,119.27,119.25,29.35]
[1741649076103,35.15343509,119.26,119.25,8.3857]
[1741649076601,35.15343509,119.26,119.24,8.3864]
[1741649076794,35.15343509,119.25,119.24,8.3864]
[1741649078503,35.15343509,119.26,119.24,8.3864]
[1741649079516,8.76,119.27,119.25,0.14216157]
[1741649080008,35.15343509,119.26,119.24,29.3525]
[1741649080609,35.15343509,119.25,119.23,0.063]
[1741649080936,35.15343509,119.24,119.23,0.063]
[1741649083208,22.04386694,119.24,119.23,0.063]
[1741649084802,23.30099088,119.24,119.23,0.063]
[1741649085301,22.04386694,119.24,119.23,0.063]
[1741649086825,32.28046694,119.28,119.23,0.063]
[1741649086826,22.04386694,119.26,119.23,0.063]
[1741649087117,30.74386694,119.26,119.23,0.063]
[1741649087501,22.04386694,119.25,119.24,20.0]
[1741649088819,8.7,119.26,119.25,8.3857]
[1741649089005,30.74386694,119.26,119.25,8.3857]
[1741649091310,8.7,119.26,119.25,8.3857]
[1741649091514,30.74386694,119.26,119.25,8.3857]
[1741649092024,30.74386694,119.26,119.23,0.063]
[1741649092227,22.04386694,119.24,119.23,0.063]
[1741649096691,22.04386694,119.25,119.23,0.063]
[1741649097703,22.04386694,119.24,119.23,0.063]
[1741649098102,22.04386694,119.24,119.23,8.4501]
[1741649099702,22.04386694,119.25,119.23,29.4179]
[1741649100213,22.04386694,119.25,119.23,0.063]
[1741649100915,30.68386694,119.25,119.23,0.063]
[1741649101104,22.04386694,119.24,119.23,0.063]
[1741649101693,22.04386694,119.25,119.23,0.063]
[1741649101910,8.64,119.25,119.23,0.063]
[1741649102101,22.04386694,119.24,119.23,0.063]
[1741649103510,37.47526694,119.24,119.23,0.063]
[1741649104012,59.51913388,119.24,119.18,8.3905]
[1741649104309,22.04386694,119.19,119.18,8.3905]
[1741649104492,8.64,119.19,119.17,0.063]
[1741649104687,30.68386694,119.19,119.17,0.063]
[1741649105904,30.68386694,119.19,119.18,20.14216157]
[1741649105905,8.64,119.19,119.18,20.14216157]
[1741649106104,30.68386694,119.22,119.19,20.0]
[1741649106426,8.64,119.22,119.21,8.3885]
[1741649106802,22.04386694,119.24,119.21,29.50196157]
[1741649106991,22.04386694,119.25,119.21,29.50196157]
[1741649107197,22.04386694,119.25,119.21,51.54582851]
[1741649107901,22.04386694,119.25,119.21,51.60882851]
[1741649108616,22.04386694,119.26,119.22,22.32819008]
[1741649108815,30.68386694,119.26,119.22,22.32819008]
[1741649109027,8.64,119.26,119.24,20.0]
[1741649109526,22.04386694,119.25,119.24,20.0]
[1741649109720,8.64,119.26,119.24,20.0]
[1741649109930,22.04386694,119.25,119.24,20.0]
[1741649110722,22.04386694,119.25,119.24,28.3864]
[1741649111322,30.68386694,119.26,119.24,28.3864]
[1741649111821,8.64,119.26,119.24,28.3864]
[1741649112016,30.68386694,119.26,119.24,28.3864]
[1741649112912,22.04386694,119.25,119.24,28.3864]
[1741649113295,30.68386694,119.26,119.24,28.3864]
[1741649114221,0.03,119.29,119.28,20.0]
[1741649114810,0.03,119.29,119.28,28.3836]
[1741649115520,22.07386694,119.29,119.28,8.3836]
[1741649116922,22.07386694,119.29,119.26,20.9617]
[1741649117316,0.03,119.29,119.26,20.9617]
[1741649117524,0.03,119.29,119.28,20.0]
[1741649117697,22.07386694,119.29,119.28,20.0]
[1741649118028,22.07386694,119.29,119.26,20.9617]
[1741649118208,22.04386694,119.27,119.26,20.9617]
[1741649118519,22.04386694,119.27,119.25,8.3857]
[1741649118821,30.68386694,119.26,119.24,8.3864]
[1741649119128,22.04386694,119.25,119.24,8.3864]
[1741649119530,22.04386694,119.25,119.24,28.3864]
[1741649119706,22.04386694,119.25,119.22,8.3878]
[1741649120040,22.04386694,119.23,119.22,8.3878]
[1741649120220,22.04386694,119.23,119.21,8.4513]
[1741649120898,30.68386694,119.24,119.23,0.063]
[1741649122123,0.28432314,119.23,119.21,0.063]
[1741649122310,10.4064,119.2,119.17,0.063]
[1741649122508,22.04386694,119.18,119.17,0.063]
[1741649124324,35.2907822,119.18,119.17,0.063]
[1741649127305,160.7721644,119.18,119.12,0.063]
[1741649127511,35.2907822,119.13,119.12,20.063]
[1741649127825,43.9307822,119.13,119.12,20.063]
[1741649128532,35.2907822,119.17,119.14,20.0]
[1741649128704,35.2907822,119.18,119.16,19.0]
[1741649129230,35.2907822,119.17,119.16,27.3914]
[1741649129725,35.2907822,119.18,119.16,27.3914]
[1741649129927,35.2907822,119.17,119.16,27.3914]
[1741649130132,35.2907822,119.19,119.16,48.3715]
[1741649130305,43.9307822,119.2,119.16,48.3715]
[1741649130500,8.64,119.2,119.16,83.6622822]
[1741649130696,8.64,119.2,119.17,0.14216157]
[1741649131526,8.64,119.2,119.18,8.3906]
[1741649132418,35.2907822,119.23,119.19,0.14216157]
[1741649133134,10.1543,119.26,119.21,0.14216157]
[1741649133312,35.2907822,119.23,119.2,8.3892]
[1741649133625,35.2907822,119.21,119.2,8.3892]
[1741649133820,35.2907822,119.21,119.18,8.53276157]
[1741649135416,35.2907822,119.2,119.16,0.14216157]
[1741649135732,35.2907822,119.18,119.16,8.392]
[1741649136040,35.2907822,119.17,119.13,0.14216157]
[1741649136531,35.2907822,119.17,119.16,20.0]
[1741649136908,35.2907822,119.19,119.17,20.0]
[1741649137304,8.64,119.2,119.16,35.2907822]
[1741649137305,43.9307822,119.2,119.16,35.2907822]
[1741649137504,43.9307822,119.2,119.18,20.0]
[1741649137505,35.2907822,119.19,119.18,20.0]
[1741649138127,35.2907822,119.19,119.16,8.392]
[1741649138431,35.2907822,119.19,119.16,29.3721]
[1741649138724,35.2907822,119.18,119.16,8.392]
[1741649138937,35.2907822,119.17,119.16,8.392]
[1741649139312,35.2907822,119.18,119.16,8.392]
[1741649139506,35.2907822,119.18,119.15,8.53486157]
[1741649139920,35.2907822,119.19,119.15,29.51676157]
[1741649140117,35.2907822,119.19,119.15,64.80754377]
[1741649140533,43.9307822,119.2,119.17,0.14216157]
[1741649140830,257.4707822,119.22,119.18,55.2907822]
[1741649141129,257.4707822,119.22,119.19,0.14216157]
[1741649141626,35.2907822,119.22,119.2,8.3892]
[1741649141829,35.2907822,119.21,119.2,20.0]
[1741649142425,35.2907822,119.21,119.19,20.0]
[1741649142628,35.2907822,119.2,119.19,20.0]
[1741649142829,35.2907822,119.21,119.19,20.0]
[1741649143637,35.2907822,119.21,119.19,28.3894]
[1741649144834,35.2907822,119.2,119.17,8.3913]
[1741649145537,35.2907822,119.21,119.18,0.14216157]
[1741649145712,35.2907822,119.2,119.16,35.43294377]
[1741649145917,43.9307822,119.19,119.16,8.392]
[1741649146537,35.2907822,119.17,119.16,20.0]
[1741649146731,35.2907822,119.17,119.13,8.3941]
[1741649146934,35.2907822,119.16,119.13,8.3941]
[1741649147113,13.5669,119.19,119.15,20.0]
[1741649147426,35.2907822,119.17,119.15,20.0]
[1741649147832,35.2907822,119.16,119.15,20.0]
[1741649148451,35.2907822,119.16,119.14,8.3931]
[1741649148621,35.2907822,119.15,119.14,20.0]
[1741649148821,35.2907822,119.15,119.13,8.3941]
[1741649149022,35.2907822,119.16,119.13,8.3941]
[1741649149543,35.2907822,119.14,119.12,0.063]
[1741649149739,35.2907822,119.13,119.11,0.063]
[1741649149928,43.9307822,119.12,119.11,0.063]
[1741649150736,81.8,119.11,119.09,0.03]
[1741649150928,71.83868834,119.1,119.09,0.03]
[1741649151120,35.2907822,119.1,119.09,0.03]
[1741649151341,70.5815644,119.1,119.09,0.03]
[1741649151533,71.83868834,119.1,119.09,0.03]
[1741649151723,71.98084991,119.1,119.09,0.03]
[1741649151925,70.5815644,119.1,119.09,0.03]
[1741649152540,35.2907822,119.1,119.09,0.03]
[1741649152740,70.5815644,119.1,119.09,0.03]
[1741649153245,35.2907822,119.1,119.09,0.03]
[1741649153844,71.83868834,119.1,119.09,0.03]
[1741649154321,35.2907822,119.1,119.09,0.03]
[1741649154648,71.83868834,119.1,119.09,0.03]
[1741649154846,70.5815644,119.1,119.09,0.03]
[1741649155038,35.2907822,119.1,119.09,0.03]
[1741649155227,70.5815644,119.1,119.09,0.03]
[1741649155944,35.2907822,119.1,119.09,0.03]
[1741649156928,43.9307822,119.1,119.09,0.03]
[1741649162236,30.72899137,119.1,119.09,0.03]
[1741649162431,22.08899137,119.1,119.09,0.03]
[1741649162643,30.72899137,119.1,119.09,0.03]
[1741649162847,8.64,119.1,119.09,0.03]
[1741649163055,30.72899137,119.1,119.09,0.03]
[1741649163356,22.08899137,119.1,119.09,0.03]
[1741649165358,22.08899137,119.1,119.09,20.03]
[1741649165552,22.08899137,119.11,119.09,20.03]
[1741649165745,8.64,119.12,119.1,20.0]
[1741649165938,222.34,119.14,119.13,20.0]
[1741649166251,22.08899137,119.15,119.13,29.3795]
[1741649167543,30.72899137,119.16,119.13,29.3795]
[1741649168645,232.5063,119.2,119.16,20.0]
[1741649168646,244.44899137,119.2,119.16,20.0]
[1741649168842,244.44899137,119.2,119.16,42.08899137]
[1741649169247,22.08899137,119.19,119.17,20.0]
[1741649169443,244.44899137,119.2,119.17,20.0]
[1741649169759,253.08899137,119.2,119.17,20.0]
[1741649170059,22.08899137,119.19,119.17,20.0]
[1741649170627,22.08899137,119.19,119.18,8.3906]
[1741649171255,5.3644,119.22,119.18,29.3672]
[1741649171442,0.063,119.23,119.18,29.3672]
[1741649171443,22.08899137,119.21,119.18,29.3672]
[1741649171838,22.08899137,119.19,119.18,8.3906]
[1741649172053,22.08899137,119.19,119.13,41.9709]
[1741649172260,0.14216157,119.18,119.14,29.3769]
[1741649172460,9.89712394,119.17,119.08,9.422]
[1741649172648,9.89712394,119.17,119.11,20.989]
[1741649173041,22.08899137,119.14,119.11,20.989]
[1741649173978,22.08899137,119.15,119.11,20.989]
[1741649174263,35.29520737,119.16,119.14,20.0]
[1741649174477,35.29520737,119.16,119.15,8.3927]
[1741649174638,43.93520737,119.17,119.15,8.3927]
[1741649174957,35.29520737,119.2,119.15,106.63370737]
[1741649175277,35.29520737,119.21,119.17,35.29520737]
[1741649175757,35.29520737,119.2,119.19,20.0]
[1741649175959,35.29520737,119.21,119.19,20.0]
[1741649176146,43.93520737,119.21,119.19,20.0]
[1741649176355,35.29520737,119.22,119.18,35.29520737]
[1741649176860,43.99820737,119.23,119.19,29.3648]
[1741649177347,35.29520737,119.22,119.19,29.3648]
[1741649178366,0.063,119.23,119.21,35.29520737]
[1741649178571,0.063,119.23,119.19,29.3648]
[1741649178572,0.063,119.27,119.25,20.0]
[1741649178740,0.063,119.27,119.26,43.68020737]
[1741649179069,0.03,119.29,119.28,20.0]
[1741649179439,0.03,119.29,119.28,55.29520737]
[1741649179642,0.03,119.29,119.28,20.0]
[1741649180061,0.03,119.29,119.28,55.29520737]
[1741649181071,0.03,119.29,119.28,63.67880737]
[1741649181369,0.03,119.29,119.28,28.3836]
[1741649182085,0.03,119.29,119.28,63.96313051]
[1741649182259,0.0001,119.29,119.28,63.96313051]
[1741649182449,0.0001,119.29,119.28,99.25833788]
[1741649182643,0.0001,119.29,119.28,63.96313051]
[1741649183859,0.063,119.3,119.28,63.96313051]
[1741649183860,0.0001,119.3,119.29,0.28432314]
[1741649184053,0.0001,119.3,119.29,35.57953051]
[1741649184268,0.0001,119.3,119.29,45.57123051]
[1741649185055,0.0001,119.3,119.29,53.95413051]
[1741649187061,0.0001,119.3,119.29,43.96243051]
[1741649187265,0.0001,119.3,119.27,8.52646157]
[1741649187453,0.0001,119.3,119.27,8.3843]
[1741649187658,0.0001,119.3,119.29,20.0]
[1741649187858,0.0001,119.3,119.29,35.29520737]
[1741649188058,0.0001,119.3,119.27,43.67950737]
[1741649188268,0.0001,119.3,119.29,20.0]
[1741649188663,0.0001,119.3,119.29,55.29520737]
[1741649188865,0.0001,119.3,119.29,55.57953051]
[1741649189282,0.0001,119.3,119.29,63.96243051]
[1741649189881,0.063,119.35,119.3,0.28432314]
[1741649190086,0.063,119.35,119.34,35.57953051]
[1741649190380,0.063,119.35,119.34,20.0]
[1741649190772,0.063,119.35,119.32,35.29520737]
[1741649191080,0.063,119.35,119.29,34.1449]
[1741649191081,35.35820737,119.35,119.31,35.29520737]
[1741649191283,35.35820737,119.35,119.33,20.0]
[1741649191582,0.063,119.35,119.33,20.0]
[1741649191962,35.35820737,119.35,119.33,20.0]
[1741649192668,35.29520737,119.34,119.33,20.0]
[1741649192981,35.35820737,119.35,119.33,20.0]
[1741649193858,35.29520737,119.34,119.33,20.0]
[1741649194076,35.35820737,119.35,119.33,20.0]
[1741649194277,0.03,119.34,119.33,20.0]
[1741649194478,0.03,119.34,119.33,28.3801]
[1741649195462,0.03,119.34,119.33,20.0]
[1741649195957,35.32520737,119.34,119.33,20.0]
[1741649196158,35.32520737,119.34,119.26,26.0795]
[1741649196373,35.29520737,119.31,119.27,8.3843]
[1741649196563,35.29520737,119.32,119.28,35.29520737]
[1741649196764,18.7451,119.33,119.29,35.29520737]
[1741649197075,54.04030737,119.33,119.28,35.29520737]
[1741649197274,35.29520737,119.31,119.27,8.3843]
[1741649197675,35.29520737,119.32,119.27,43.67950737]
[1741649198067,35.29520737,119.29,119.25,43.68090737]
[1741649198266,8.62,119.28,119.27,20.0]
[1741649198870,8.62,119.28,119.25,43.68090737]
[1741649199077,8.62,119.28,119.27,20.0]
[1741649199791,8.62,119.28,119.27,28.3843]
[1741649200165,8.62,119.28,119.27,63.67950737]
[1741649200372,43.91520737,119.31,119.27,63.67950737]
[1741649200998,35.29520737,119.3,119.29,20.0]
[1741649201497,35.29520737,119.3,119.27,20.0]
[1741649201678,35.29520737,119.29,119.27,20.0]
[1741649202194,35.29520737,119.28,119.27,20.0]
[1741649202496,10.0166,119.27,119.22,8.3878]
[1741649202796,35.29520737,119.24,119.23,20.0]
[1741649202971,35.29520737,119.24,119.19,35.43181497]
[1741649203179,35.29520737,119.21,119.19,0.1366076]
[1741649203383,35.29520737,119.2,119.19,0.1366076]
[1741649204177,8.62,119.21,119.19,0.1366076]
[1741649204373,35.29520737,119.2,119.19,0.1366076]
[1741649204598,45.08780737,119.2,119.19,0.1366076]
[1741649207187,35.29520737,119.2,119.19,0.1366076]
[1741649207794,43.68440737,119.2,119.19,0.1366076]
[1741649208296,44.94153131,119.2,119.19,0.1366076]
[1741649208701,127.02585445,119.2,119.19,0.1366076]
[1741649208898,10.1615,119.19,119.12,8.3944]
[1741649209093,35.29520737,119.13,119.09,0.03]
[1741649209301,43.91520737,119.12,119.09,0.03]
[1741649209511,8.62,119.15,119.1,35.43736894]
[1741649209678,8.62,119.15,119.12,43.83216894]
[1741649209884,8.62,119.15,119.12,43.69000737]
[1741649210206,43.91520737,119.15,119.12,8.3948]
[1741649210507,35.29520737,119.13,119.09,35.32520737]
[1741649210806,35.29520737,119.13,119.09,0.03]
[1741649210807,35.29520737,119.12,119.09,0.03]
[1741649210999,35.29520737,119.13,119.09,8.4267]
[1741649211190,35.29520737,119.13,119.09,43.72190737]
[1741649211396,35.29520737,119.14,119.09,64.71440737]
[1741649211591,35.29520737,119.13,119.09,43.72190737]
[1741649211780,35.29520737,119.12,119.09,8.4267]
[1741649211986,35.29520737,119.13,119.09,43.72190737]
[1741649212185,35.29520737,119.13,119.09,8.4267]
[1741649212404,35.29520737,119.12,119.09,8.4267]
[1741649212607,35.29520737,119.13,119.09,8.4267]
[1741649212981,35.29520737,119.12,119.09,8.4267]
[1741649213694,35.29520737,119.14,119.09,43.72190737]
[1741649213903,35.29520737,119.14,119.09,64.71440737]
[1741649214203,35.29520737,119.13,119.09,64.71440737]
[1741649214396,35.29520737,119.11,119.1,20.0]
[1741649214909,35.29520737,119.12,119.09,0.03]
[1741649215094,35.29520737,119.11,119.1,20.0]
[1741649215278,35.29520737,119.13,119.09,0.03]
[1741649215604,35.29520737,119.12,119.09,0.03]
[1741649215810,35.29520737,119.13,119.1,8.3963]
[1741649215991,35.29520737,119.14,119.1,8.3963]
[1741649216384,35.29520737,119.13,119.1,8.3963]
[1741649217916,35.29520737,119.12,119.11,20.0]
[1741649219106,35.29520737,119.12,119.09,0.03]
[1741649219409,35.29520737,119.11,119.1,20.0]
[1741649219903,1.25712394,119.14,119.1,20.0]
[1741649220211,35.29520737,119.11,119.1,20.0]
[1741649220401,35.29520737,119.11,119.09,0.03]
[1741649220600,43.93520737,119.1,119.09,0.03]
[1741649220905,8.64,119.1,119.09,0.03]
[1741649221085,8.3977,119.08,119.04,0.20425177]
[1741649221292,0.14216157,119.05,119.04,0.20425177]
[1741649221610,112.20264708,119.05,119.03,0.03]
[1741649221783,112.20264708,119.05,119.03,0.17889954]
[1741649221989,70.73257631,119.04,119.03,0.17889954]
[1741649222190,70.73257631,119.04,119.01,0.063]
[1741649222191,0.14216157,119.03,119.01,0.063]
[1741649222491,86.94216157,119.03,119.02,0.13400959]
[1741649222688,122.23736894,119.03,119.02,0.12060863]
[1741649222902,122.23736894,119.03,119.0,0.07690863]
[1741649222903,130.75520737,119.03,119.0,0.07690863]
[1741649223105,8.66,119.03,119.0,0.07690863]
[1741649223302,35.29520737,119.02,119.0,0.07690863]
[1741649223505,35.29520737,119.01,119.0,20.07690863]
[1741649223721,35.29520737,119.01,119.0,0.07690863]
[1741649224317,8.66,119.03,119.0,0.07690863]
[1741649224318,43.95520737,119.03,119.0,0.07690863]
[1741649224832,8.68,119.04,119.03,20.0]
[1741649225316,43.97520737,119.04,119.03,20.0]
[1741649225915,43.97520737,119.04,119.0,0.07690863]
[1741649226214,8.68,119.04,119.01,20.0]
[1741649226414,35.29520737,119.03,119.01,20.0]
[1741649226791,43.97520737,119.04,119.01,20.0]
[1741649226994,43.97520737,119.04,119.0,43.775016]
[1741649226995,8.68,119.04,119.02,35.43736894]
[1741649227206,43.97520737,119.04,119.03,20.0]
[1741649227392,43.97520737,119.04,119.01,8.4026]
[1741649227603,8.68,119.04,119.01,43.69780737]
[1741649227814,8.68,119.04,119.03,20.0]
[1741649228321,43.97520737,119.04,119.03,20.0]
[1741649228719,43.97520737,119.04,119.01,8.4026]
[1741649228911,35.29520737,119.03,119.01,8.4026]
[1741649229114,43.97520737,119.04,119.0,0.07690863]
[1741649229317,43.97520737,119.04,119.0,8.48020863]
[1741649229622,8.68,119.04,119.03,20.0]
[1741649229922,8.72,119.06,119.02,35.29520737]
[1741649230229,44.01520737,119.06,119.02,35.29520737]
[1741649230629,44.01520737,119.06,119.04,20.0]
[1741649231201,44.01520737,119.06,119.05,8.3998]
[1741649231721,8.72,119.06,119.05,8.3998]
[1741649232022,44.01520737,119.06,119.05,20.0]
[1741649232212,44.01520737,119.06,119.04,8.4003]
[1741649232415,35.29520737,119.05,119.04,8.4003]
[1741649232729,44.01520737,119.06,119.04,8.4003]
[1741649232897,35.29520737,119.05,119.01,8.4026]
[1741649233103,35.29520737,119.04,119.03,20.0]
[1741649233296,35.29520737,119.04,119.03,28.4012]
[1741649233524,35.29520737,119.05,119.03,28.4012]
[1741649233724,35.29520737,119.04,119.03,28.4012]
[1741649234927,35.29520737,119.05,119.03,28.4012]
[1741649235431,44.01520737,119.06,119.03,49.4043]
[1741649235731,8.72,119.06,119.03,84.69950737]
[1741649235903,15.54952394,119.09,119.04,35.29520737]
[1741649235904,44.74640737,119.09,119.04,35.29520737]
[1741649236097,8.68,119.08,119.04,35.29520737]
[1741649236416,222.28,119.1,119.06,35.29520737]
[1741649236722,35.29520737,119.09,119.07,20.0]
[1741649237525,35.29520737,119.09,119.08,8.3977]
[1741649237726,43.95520737,119.09,119.08,8.3977]
[1741649238422,266.23520737,119.1,119.08,8.3977]
[1741649238622,230.94,119.1,119.06,20.0]
[1741649238808,9.6364,119.15,119.07,35.43736894]
[1741649239011,35.29520737,119.1,119.06,8.3991]
[1741649239216,35.29520737,119.1,119.08,20.0]
[1741649239416,35.29520737,119.09,119.08,20.0]
[1741649240727,35.29520737,119.1,119.08,20.0]
[1741649240916,35.29520737,119.09,119.08,20.0]
[1741649241915,35.29520737,119.1,119.08,28.3977]
[1741649242121,0.063,119.09,119.08,28.3977]
[1741649243231,0.063,119.09,119.08,63.83506894]
[1741649243727,43.93520737,119.14,119.09,0.14216157]
[1741649243906,8.64,119.14,119.11,35.29520737]
[1741649244103,0.063,119.15,119.12,35.29520737]
[1741649244633,0.063,119.15,119.13,35.29520737]
[1741649244837,0.063,119.15,119.14,35.43736894]
[1741649245132,0.063,119.15,119.14,20.0]
[1741649245833,0.063,119.15,119.12,55.29520737]
[1741649246030,35.35820737,119.15,119.13,20.0]
[1741649246534,35.29520737,119.14,119.13,20.0]
[1741649246840,8.64,119.14,119.13,20.0]
[1741649247027,0.063,119.15,119.13,55.43736894]
[1741649247429,0.063,119.15,119.14,55.29520737]
[1741649247625,0.063,119.15,119.14,20.0]
[1741649247820,0.063,119.15,119.14,63.83076894]
[1741649248341,0.0001,119.15,119.14,63.97293051]
[1741649250448,0.0001,119.15,119.14,63.83076894]
[1741649250813,0.0001,119.15,119.14,63.97293051]
[1741649251937,0.063,119.21,119.15,2.28432314]
[1741649252148,222.36,119.24,119.21,0.14216157]
[1741649252445,222.36,119.24,119.22,8.3878]
[1741649252638,35.29520737,119.23,119.2,20.0]
[1741649252815,35.29520737,119.22,119.21,20.0]
[1741649253023,35.29520737,119.22,119.18,0.14216157]
[1741649253443,35.29520737,119.23,119.19,35.29520737]
[1741649253745,257.65520737,119.24,119.23,20.0]
[1741649254325,222.36,119.24,119.23,28.3871]
[1741649255319,222.36,119.24,119.23,20.0]
[1741649255320,257.65520737,119.24,119.23,20.0]
[1741649256148,257.65520737,119.24,119.22,20.0]
[1741649256348,35.29520737,119.23,119.22,20.0]
[1741649256746,257.65520737,119.24,119.22,20.0]
[1741649257450,35.29520737,119.23,119.21,20.0]
[1741649257624,35.29520737,119.22,119.21,20.0]
[1741649257829,35.29520737,119.22,119.18,8.3904]
[1741649258040,35.29520737,119.21,119.2,20.0]
[1741649258534,35.29520737,119.22,119.2,20.0]
[1741649258736,35.29520737,119.21,119.2,20.0]
[1741649260852,43.68370737,119.21,119.16,8.392]
[1741649261029,43.93520737,119.2,119.16,8.392]
[1741649261230,8.64,119.2,119.16,64.66730737]
[1741649261533,8.64,119.2,119.19,20.0]
[1741649261722,35.29520737,119.23,119.21,20.0]
[1741649261927,222.36,119.24,119.23,20.0]
[1741649262128,8.64,119.25,119.24,20.0]
[1741649262659,43.99820737,119.27,119.25,8.3857]
[1741649262956,35.35820737,119.27,119.25,8.3857]
[1741649263138,35.35820737,119.27,119.24,8.3864]
[1741649263757,35.29520737,119.25,119.17,14.7245]
[1741649264090,8.64,119.24,119.22,20.0]
[1741649264240,35.29520737,119.23,119.18,43.82796894]
[1741649264442,35.29520737,119.22,119.18,8.53276157]
[1741649265035,8.3875,119.23,119.2,20.0]
[1741649265240,35.29520737,119.21,119.17,8.391]
[1741649265557,35.29520737,119.21,119.17,43.68620737]
[1741649265929,35.29520737,119.2,119.19,20.0]
[1741649266430,35.29520737,119.21,119.19,20.0]
[1741649266655,35.29520737,119.21,119.19,28.3899]
[1741649267054,245.9751,119.24,119.19,28.3899]
[1741649267242,35.29520737,119.23,119.19,63.68510737]
[1741649267648,35.29520737,119.23,119.19,28.3899]
[1741649267853,35.29520737,119.23,119.19,49.3648]
[1741649268258,35.29520737,119.23,119.19,84.66000737]
[1741649269041,230.83,119.24,119.23,20.0]
[1741649269245,222.19,119.24,119.22,35.29520737]
[1741649269444,257.48520737,119.24,119.23,20.0]
[1741649269770,257.48520737,119.24,119.19,64.66000737]
[1741649269951,35.29520737,119.23,119.19,64.66000737]
[1741649270265,35.29520737,119.23,119.22,20.0]
[1741649270575,257.48520737,119.24,119.21,8.3885]
[1741649270776,35.29520737,119.23,119.21,8.3885]
[1741649271366,257.48520737,119.24,119.21,8.3885]
[1741649271663,257.48520737,119.24,119.21,64.65500737]
[1741649271664,222.19,119.24,119.21,64.65500737]
[1741649271967,257.48520737,119.24,119.21,29.3598]
[1741649272467,222.19,119.24,119.21,64.65500737]
[1741649272651,257.48520737,119.24,119.21,29.3598]
[1741649273445,257.48520737,119.24,119.21,8.3885]
[1741649273872,35.29520737,119.23,119.21,8.3885]
[1741649274042,35.29520737,119.22,119.18,20.0]
[1741649274247,35.29520737,119.22,119.2,20.0]
[1741649274444,35.29520737,119.23,119.2,20.0]
[1741649274648,35.29520737,119.23,119.2,29.3623]
[1741649275043,35.29520737,119.23,119.2,8.3892]
[1741649275262,35.29520737,119.23,119.21,20.0]
[1741649275543,35.29520737,119.22,119.18,8.3906]
[1741649275762,35.29520737,119.21,119.2,20.0]
[1741649275958,35.29520737,119.21,119.18,8.3906]
[1741649276165,35.29520737,119.19,119.16,8.392]
[1741649276365,22.05242521,119.19,119.18,20.0]
[1741649277170,22.05242521,119.19,119.18,28.3906]
[1741649277467,30.67242521,119.2,119.18,28.3906]
[1741649278157,22.05242521,119.22,119.18,71.41962521]
[1741649278471,35.26511404,119.2,119.18,28.3906]
[1741649278971,43.90511404,119.21,119.18,28.3906]
[1741649279751,8.64,119.21,119.18,49.3672]
[1741649280247,8.64,119.21,119.18,84.63231404]
[1741649280442,35.29511404,119.23,119.19,0.14216157]
[1741649280745,8.64,119.22,119.21,28.3885]
[1741649280948,8.64,119.22,119.21,20.0]
[1741649280949,43.90511404,119.22,119.21,20.0]
[1741649281377,43.90511404,119.22,119.19,8.3896]
[1741649281558,35.26511404,119.2,119.19,8.3896]
[1741649281758,8.64,119.22,119.19,8.3896]
[1741649281968,35.26511404,119.2,119.18,8.3903]
[1741649282269,35.26511404,119.2,119.19,20.0]
[1741649282863,35.26511404,119.2,119.19,28.3899]
[1741649283256,35.26511404,119.2,119.19,18.2767]
[1741649283858,35.26511404,119.21,119.19,8.3899]
[1741649284372,35.26511404,119.2,119.17,0.063]
[1741649284550,35.26511404,119.18,119.17,0.063]
[1741649285446,35.26511404,119.19,119.18,20.0]
[1741649285650,35.26511404,119.2,119.18,20.0]
[1741649285845,8.64,119.19,119.18,20.0]
[1741649286079,43.90511404,119.19,119.18,20.0]
[1741649286263,8.64,119.19,119.18,20.0]
[1741649287083,8.64,119.19,119.18,28.3906]